fUST/lending_fUST_20250520
["ID","MTS","AMOUNT","RATE_DAILY","PERIOD"]
[361653879,1747670431750,200.0,0.00024491,120]
[361653880,1747670465605,1259.0,0.00025082,33]
[361653919,1747670599276,177.377973,0.00027397,120]
[361653921,1747670614849,489.5,0.00027397,120]
[361653963,1747670878693,229.5569643,0.00025095,120]
[361653970,1747670948307,100000.0,0.00027397,120]
[361654010,1747671032463,-5000.0,0.00013292,2]
[361654011,1747671032474,-227.599308,0.00013699,2]
[361654012,1747671032483,-200.0,0.00015477,2]
[361654013,1747671032493,-349.2695165,0.00015803,2]
[361654014,1747671032502,-1200.0,0.00015897,2]
[361654015,1747671032512,-300.0,0.00015898,2]
[361654016,1747671032521,-300.0,0.00015898,2]
[361654017,1747671032530,-300.0,0.00015898,2]
[361654018,1747671032540,-300.0,0.00015899,2]
[361654019,1747671032549,-3852.41614088,0.000159,2]
[361654020,1747671032559,-1050.61434839,0.00016245,2]
[361654021,1747671032578,-2801.80179224,0.00016245,2]
[361654022,1747671032588,-3852.41614063,0.0001659,2]
[361654023,1747671032599,-5000.0,0.00016805,2]
[361654024,1747671032608,-3852.41614063,0.00016934,2]
[361654025,1747671032617,-3852.41614063,0.00017279,2]
[361654026,1747671032626,-420.0,0.00017384,2]
[361654027,1747671032635,-420.0,0.00017385,2]
[361654028,1747671032645,-1174.0,0.0001747,2]
[361654029,1747671032654,-227.24518753,0.00017577,2]
[361654030,1747671032664,-3852.41614063,0.00017624,2]
[361654031,1747671032674,-3852.41614063,0.00017969,2]
[361654032,1747671032683,-258.11360058,0.00018138,2]
[361654033,1747671032692,-500.0,0.00018138,2]
[361654034,1747671032702,-500.0,0.00018138,2]
[361654035,1747671032712,-428.62233146,0.00018138,2]
[361654036,1747671032721,-500.0,0.00018138,2]
[361654037,1747671032731,-500.0,0.00018138,2]
[361654038,1747671032740,-500.0,0.00018138,2]
[361654039,1747671032750,-500.0,0.00018138,2]
[361654040,1747671032759,-500.0,0.00018138,2]
[361654041,1747671032769,-500.0,0.00018138,2]
[361654042,1747671032779,-293.44906656,0.00018138,2]
[361654043,1747671032788,-500.0,0.00018138,2]
[361654044,1747671032899,-513.29079479,0.00018138,2]
[361654045,1747671032909,-407.8833117,0.00018138,2]
[361654046,1747671032919,-500.0,0.00018138,2]
[361654047,1747671032929,-500.0,0.00018138,2]
[361654048,1747671032939,-500.0,0.00018138,2]
[361654049,1747671032949,-500.0,0.00018138,2]
[361654050,1747671032959,-500.0,0.00018138,2]
[361654051,1747671032968,-617.15670993,0.00018138,2]
[361654052,1747671032978,-500.0,0.00018138,2]
[361654053,1747671032988,-500.0,0.00018138,2]
[361654054,1747671032997,-500.0,0.00018138,2]
[361654055,1747671033007,-500.0,0.00018138,2]
[361654056,1747671033017,-500.0,0.00018138,2]
[361654057,1747671033026,-500.0,0.00018138,2]
[361654058,1747671033036,-500.0,0.00018138,2]
[361654059,1747671033046,-500.0,0.00018138,2]
[361654060,1747671033057,-500.0,0.00018138,2]
[361654061,1747671033067,-500.0,0.00018138,2]
[361654062,1747671033077,-500.0,0.00018138,2]
[361654063,1747671033087,-500.0,0.00018138,2]
[361654064,1747671033097,-500.0,0.00018138,2]
[361654065,1747671033107,-500.0,0.00018138,2]
[361654066,1747671033116,-570.63225384,0.00018138,2]
[361654067,1747671033127,-500.0,0.00018138,2]
[361654068,1747671033136,-500.0,0.00018138,2]
[361654069,1747671033147,-500.0,0.00018138,2]
[361654070,1747671033157,-500.0,0.00018138,2]
[361654071,1747671033168,-250.0,0.00018138,2]
[361654072,1747671033177,-500.0,0.00018138,2]
[361654073,1747671033186,-500.0,0.00018138,2]
[361654075,1747671033408,-500.0,0.00018138,2]
[361654077,1747671033418,-500.0,0.00018138,2]
[361654079,1747671033428,-500.0,0.00018138,2]
[361654081,1747671033438,-500.0,0.00018138,2]
[361654083,1747671033448,-500.0,0.00018138,2]
[361654085,1747671033459,-500.0,0.00018138,2]
[361654087,1747671033468,-500.0,0.00018138,2]
[361654089,1747671033478,-500.0,0.00018138,2]
[361654091,1747671033487,-500.0,0.00018138,2]
[361654093,1747671033497,-500.0,0.00018138,2]
[361654094,1747671033506,-500.0,0.00018138,2]
[361654097,1747671033517,-500.0,0.00018138,2]
[361654099,1747671033527,-500.0,0.00018138,2]
[361654101,1747671033537,-500.0,0.00018138,2]
[361654102,1747671033548,-500.0,0.00018138,2]
[361654104,1747671033558,-500.0,0.00018138,2]
[361654106,1747671033573,-500.0,0.00018138,2]
[361654108,1747671033583,-625.98265068,0.00018138,2]
[361654110,1747671033593,-500.0,0.00018138,2]
[361654112,1747671033604,-500.0,0.00018138,2]
[361654113,1747671033614,-500.0,0.00018138,2]
[361654114,1747671033624,-500.0,0.00018138,2]
[361654115,1747671033634,-500.0,0.00018138,2]
[361654116,1747671033643,-500.0,0.00018138,2]
[361654117,1747671033661,-500.0,0.00018138,2]
[361654118,1747671033674,-500.0,0.00018138,2]
[361654119,1747671033684,-500.0,0.00018138,2]
[361654120,1747671033695,-500.0,0.00018138,2]
[361654121,1747671033706,-500.0,0.00018138,2]
[361654122,1747671033716,-500.0,0.00018138,2]
[361654123,1747671033727,-500.0,0.00018138,2]
[361654124,1747671033737,-500.0,0.00018138,2]
[361654125,1747671033747,-500.0,0.00018138,2]
[361654126,1747671033758,-500.0,0.00018138,2]
[361654127,1747671033769,-500.0,0.00018138,2]
[361654128,1747671033780,-500.0,0.00018138,2]
[361654129,1747671033790,-500.0,0.00018138,2]
[361654130,1747671033799,-500.0,0.00018138,2]
[361654131,1747671033812,-500.0,0.00018138,2]
[361654132,1747671033822,-500.0,0.00018138,2]
[361654133,1747671033833,-500.0,0.00018138,2]
[361654134,1747671033843,-500.0,0.00018138,2]
[361654135,1747671033853,-500.0,0.00018138,2]
[361654136,1747671033864,-500.0,0.00018138,2]
[361654137,1747671033876,-500.0,0.00018138,2]
[361654138,1747671033887,-500.0,0.00018138,2]
[361654139,1747671033898,-500.0,0.00018138,2]
[361654140,1747671033909,-500.0,0.00018138,2]
[361654141,1747671033921,-500.0,0.00018138,2]
[361654142,1747671033932,-500.0,0.00018138,2]
[361654143,1747671033944,-500.0,0.00018138,2]
[361654144,1747671033955,-500.0,0.00018138,2]
[361654145,1747671033966,-500.0,0.00018138,2]
[361654146,1747671033976,-500.0,0.00018138,2]
[361654147,1747671033987,-500.0,0.00018138,2]
[361654148,1747671033997,-500.0,0.00018138,2]
[361654149,1747671034007,-239.7306389,0.00018138,2]
[361654150,1747671034017,-343.50987564,0.00018138,2]
[361654151,1747671034027,-500.0,0.00018138,2]
[361654152,1747671034037,-500.0,0.00018138,2]
[361654153,1747671034047,-500.0,0.00018138,2]
[361654154,1747671034057,-500.0,0.00018138,2]
[361654155,1747671034070,-500.0,0.00018138,2]
[361654156,1747671034080,-500.0,0.00018138,2]
[361654157,1747671034090,-500.0,0.00018138,2]
[361654158,1747671034100,-500.0,0.00018138,2]
[361654159,1747671034111,-500.0,0.00018138,2]
[361654160,1747671034122,-500.0,0.00018138,2]
[361654161,1747671034131,-500.0,0.00018138,2]
[361654162,1747671034141,-500.0,0.00018138,2]
[361654163,1747671034151,-500.0,0.00018138,2]
[361654164,1747671034160,-500.0,0.00018138,2]
[361654165,1747671034170,-500.0,0.00018138,2]
[361654166,1747671034179,-500.0,0.00018138,2]
[361654167,1747671034189,-500.0,0.00018138,2]
[361654168,1747671034199,-500.0,0.00018138,2]
[361654169,1747671034209,-500.0,0.00018138,2]
[361654170,1747671034219,-500.0,0.00018138,2]
[361654171,1747671034228,-500.0,0.00018138,2]
[361654172,1747671034239,-500.0,0.00018138,2]
[361654173,1747671034249,-250.0,0.00018138,2]
[361654174,1747671034259,-500.0,0.00018138,2]
[361654175,1747671034270,-500.0,0.00018138,2]
[361654176,1747671034280,-500.0,0.00018138,2]
[361654177,1747671034293,-500.0,0.00018138,2]
[361654178,1747671034312,-500.0,0.00018138,2]
[361654179,1747671034322,-500.0,0.00018138,2]
[361654180,1747671034332,-500.0,0.00018138,2]
[361654181,1747671034344,-500.0,0.00018138,2]
[361654182,1747671034354,-500.0,0.00018138,2]
[361654183,1747671034364,-500.0,0.00018138,2]
[361654184,1747671034374,-500.0,0.00018138,2]
[361654185,1747671034383,-500.0,0.00018138,2]
[361654186,1747671034393,-500.0,0.00018138,2]
[361654187,1747671034403,-500.0,0.00018138,2]
[361654188,1747671034414,-500.0,0.00018138,2]
[361654189,1747671034424,-500.0,0.00018138,2]
[361654190,1747671034434,-500.0,0.00018138,2]
[361654191,1747671034444,-500.0,0.0001814,2]
[361654192,1747671034454,-823.64402152,0.00018214,2]
[361654193,1747671034464,-3852.41614063,0.00018314,2]
[361654194,1747671034474,-558.995947,0.00018319,2]
[361654195,1747671034485,-172.11995101,0.00018412,2]
[361654196,1747671034494,-500.0,0.00018414,2]
[361654197,1747671034504,-3852.41614063,0.00018659,2]
[361654198,1747671034515,-200.0,0.00018659,10]
[361654199,1747671034643,-321.063006,0.00018659,10]
[361654200,1747671034653,-168.13076607,0.00018688,2]
[361654201,1747671034663,-219.524935,0.00018709,2]
[361654202,1747671034672,-160.0,0.00018924,2]
[361654203,1747671034681,-3852.41614063,0.00019003,2]
[361654204,1747671034690,-587.0,0.00019008,2]
[361654205,1747671034700,-587.0,0.00019009,2]
[361654206,1747671034710,-823.64402148,0.00019136,2]
[361654207,1747671034720,-155.14573718,0.00019178,2]
[361654208,1747671034729,-445.024538,0.00019178,2]
[361654209,1747671034739,-3852.41614063,0.00019348,2]
[361654210,1747671034748,-500.0,0.000195,2]
[361654211,1747671034758,-500.0,0.000195,2]
[361654212,1747671034768,-3852.41614063,0.00019693,2]
[361654213,1747671034777,-500.0,0.00019743,2]
[361654214,1747671034787,-500.0,0.00019743,2]
[361654215,1747671034797,-514.65279665,0.00019743,2]
[361654216,1747671034807,-502.16336758,0.00019743,2]
[361654217,1747671034818,-500.0,0.00019743,2]
[361654218,1747671034828,-502.8258535,0.00019743,2]
[361654219,1747671034838,-500.0,0.00019743,2]
[361654220,1747671034847,-500.0,0.00019743,2]
[361654221,1747671034857,-555.2986708,0.00019909,2]
[361654222,1747671034867,-363.4438647,0.0002,2]
[361654223,1747671034877,-363.4438647,0.0002,2]
[361654224,1747671034887,-363.4438647,0.0002,2]
[361654225,1747671034897,-363.4438647,0.0002,2]
[361654226,1747671034906,-300.0,0.0002,2]
[361654227,1747671034916,-157.85,0.0002,2]
[361654228,1747671034927,-3852.41614063,0.00020038,2]
[361654229,1747671034936,-363.4438647,0.00020041,2]
[361654230,1747671034946,-500.0,0.00020048,2]
[361654231,1747671034956,-1000.0,0.00020048,2]
[361654232,1747671034966,-823.64402148,0.00020057,2]
[361654233,1747671034975,-1850.0,0.00020098,3]
[361654234,1747671034985,-227.599308,0.00020187,2]
[361654235,1747671034994,-151.0,0.00020199,2]
[361654236,1747671035004,-184.777945,0.00020199,2]
[361654237,1747671035014,-1000.0,0.00020199,3]
[361654238,1747671035023,-1000.0,0.00020291,2]
[361654239,1747671035033,-1000.0,0.00020291,2]
[361654240,1747671035042,-1004.95411463,0.00020291,2]
[361654241,1747671035052,-1000.0,0.00020291,2]
[361654242,1747671035063,-1000.0,0.00020291,2]
[361654243,1747671035072,-613.01955853,0.00020295,2]
[361654244,1747671035082,-1000.0,0.00020298,3]
[361654245,1747671035092,-3852.41614063,0.00020383,3]
[361654246,1747671035101,-160.0,0.00020481,2]
[361654247,1747671035111,-160.0,0.00020484,2]
[361654248,1747671035121,-998.68447496,0.00020484,2]
[361654249,1747671035130,-212.35735062,0.00020484,2]
[361654250,1747671035140,-12638.53552368,0.00020484,2]
[361654251,1747671035150,-422.59250115,0.00020484,2]
[361654252,1747671035159,-160.0,0.00020484,2]
[361654253,1747671035169,-160.0,0.00020484,2]
[361654254,1747671035179,-1000.0,0.00020498,3]
[361654255,1747671035189,-151.0,0.00020498,3]
[361654256,1747671035199,-151.0,0.00020498,3]
[361654257,1747671035208,-151.0,0.00020498,3]
[361654258,1747671035218,-151.0,0.00020498,3]
[361654259,1747671035228,-151.0,0.00020498,3]
[361654260,1747671035238,-998.68447496,0.00020498,3]
[361654261,1747671035247,-500.0,0.00020505,2]
[361654262,1747671035257,-500.0,0.00020505,2]
[361654263,1747671035267,-303.49592232,0.00020505,2]
[361654264,1747671035276,-500.0,0.00020505,2]
[361654265,1747671035286,-500.0,0.00020505,2]
[361654266,1747671035295,-500.0,0.00020505,2]
[361654267,1747671035306,-428.1873815,0.00020505,2]
[361654268,1747671035319,-500.0,0.00020505,2]
[361654269,1747671035329,-500.0,0.00020505,2]
[361654270,1747671035339,-500.0,0.00020505,2]
[361654271,1747671035348,-500.0,0.00020505,2]
[361654272,1747671035358,-500.0,0.00020505,2]
[361654273,1747671035369,-489.52904383,0.00020505,2]
[361654274,1747671035380,-151.0,0.00020507,2]
[361654275,1747671035391,-151.0,0.00020507,2]
[361654276,1747671035401,-198.0,0.00020507,2]
[361654277,1747671035411,-151.0,0.00020507,2]
[361654278,1747671035421,-500.0,0.00020548,2]
[361654279,1747671035431,-500.0,0.00020548,2]
[361654280,1747671035441,-500.0,0.00020548,2]
[361654281,1747671035450,-500.0,0.00020548,2]
[361654282,1747671035460,-500.0,0.00020548,2]
[361654283,1747671035469,-500.0,0.00020548,2]
[361654284,1747671035479,-500.0,0.00020548,2]
[361654285,1747671035489,-201.35711412,0.00020548,2]
[361654286,1747671035500,-500.0,0.00020548,2]
[361654287,1747671035509,-500.0,0.00020548,2]
[361654288,1747671035519,-500.0,0.00020548,2]
[361654289,1747671035530,-500.0,0.00020548,2]
[361654290,1747671035540,-500.0,0.00020548,2]
[361654291,1747671035549,-500.0,0.00020548,2]
[361654292,1747671035561,-500.0,0.00020548,2]
[361654293,1747671035570,-530.99136257,0.00020548,2]
[361654294,1747671035580,-530.99136257,0.00020548,2]
[361654295,1747671035589,-530.99136257,0.00020548,2]
[361654296,1747671035598,-530.99136257,0.00020548,2]
[361654297,1747671035608,-530.99136257,0.00020548,2]
[361654298,1747671035626,-530.99136257,0.00020548,2]
[361654299,1747671035638,-530.99136257,0.00020548,2]
[361654300,1747671035648,-530.99136257,0.00020548,2]
[361654301,1747671035659,-500.0,0.00020548,2]
[361654302,1747671035669,-500.0,0.00020548,2]
[361654303,1747671035681,-254.54299296,0.00020548,2]
[361654304,1747671035691,-1200.0,0.00020561,2]
[361654305,1747671035702,-156.913,0.00020567,2]
[361654306,1747671035712,-613.01955854,0.00020583,2]
[361654307,1747671035723,-1121.40643659,0.00020596,2]
[361654308,1747671035733,-154.04372,0.00020598,2]
[361654309,1747671035743,-152.440132,0.00020598,2]
[361654310,1747671035753,-500.0,0.000206,2]
[361654311,1747671035763,-500.0,0.0002068,2]
[361654312,1747671035772,-158.0921024,0.00020685,2]
[361654313,1747671035782,-154.2938119,0.00020685,2]
[361654314,1747671035792,-201.9999754,0.00020685,2]
[361654315,1747671035802,-569.7291921,0.00020685,2]
[361654316,1747671035813,-158.0921024,0.00020685,2]
[361654317,1747671035823,-569.7291921,0.00020685,2]
[361654318,1747671035833,-175.9518997,0.00020685,2]
[361654319,1747671035843,-153.0,0.00020685,2]
[361654320,1747671035853,-569.7291921,0.00020685,2]
[361654321,1747671035864,-175.9518997,0.00020685,2]
[361654322,1747671035873,-158.0921024,0.00020685,2]
[361654323,1747671035884,-153.0,0.00020685,2]
[361654324,1747671036003,-153.0,0.00020685,2]
[361654325,1747671036021,-569.7291921,0.00020685,2]
[361654326,1747671036031,-175.9518997,0.00020685,2]
[361654327,1747671036041,-158.0921024,0.00020685,2]
[361654328,1747671036051,-158.0921024,0.00020685,2]
[361654329,1747671036061,-175.9518997,0.00020685,2]
[361654330,1747671036070,-569.7291921,0.00020685,2]
[361654331,1747671036080,-151.0,0.00020723,2]
[361654332,1747671036089,-207.4,0.00020723,2]
[361654333,1747671036098,-12638.53552368,0.00020728,3]
[361654334,1747671036107,-160.0,0.00020728,3]
[361654335,1747671036117,-3852.41614063,0.00020728,3]
[361654336,1747671036126,-823.0,0.00020784,2]
[361654337,1747671036135,-493.0,0.00020786,2]
[361654338,1747671036144,-1470.19970672,0.00020839,2]
[361654339,1747671036154,-1500.0,0.00020839,2]
[361654340,1747671036163,-1575.7398187,0.00020839,2]
[361654341,1747671036172,-1500.0,0.00020839,2]
[361654342,1747671036182,-151.0,0.000209,4]
[361654343,1747671036190,-363.4438647,0.00020959,2]
[361654344,1747671036200,-363.4438647,0.00020959,2]
[361654345,1747671036210,-363.4438647,0.00020959,2]
[361654346,1747671036219,-363.4438647,0.00020959,2]
[361654347,1747671036228,-363.4438647,0.00020959,2]
[361654348,1747671036237,-363.4438647,0.00020959,2]
[361654349,1747671036246,-363.4438647,0.00020959,2]
[361654350,1747671036255,-363.4438647,0.00020959,2]
[361654351,1747671036265,-357.5948461,0.00020959,2]
[361654352,1747671036274,-823.64402148,0.00020979,2]
[361654353,1747671036283,-17478.04373862,0.0002099,2]
[361654354,1747671036292,-21738.15687011,0.00021,3]
[361654355,1747671036302,-37583.40827727,0.00021,2]
[361654356,1747671036313,-1152.80187131,0.00021,5]
[361654357,1747671036323,-702.8,0.00021,2]
[361654358,1747671036332,-267.4036114,0.00021,2]
[361654359,1747671036343,-1000.06675914,0.00021,10]
[361654360,1747671036353,-150420.83860043,0.00021,7]
[361654361,1747671036362,-151.0,0.00021,2]
[361654362,1747671036372,-151.0,0.00021,2]
[361654363,1747671036382,-151.0,0.00021,2]
[361654364,1747671036393,-179.254342,0.00021,2]
[361654365,1747671036403,-179.254342,0.00021,2]
[361654366,1747671036412,-151.0,0.00021,2]
[361654367,1747671036421,-151.0,0.00021,2]
[361654368,1747671036430,-3000.0,0.00021,2]
[361654369,1747671036439,-559.0,0.00021,2]
[361654370,1747671036449,-1467.0,0.00021,2]
[361654371,1747671036458,-160.0,0.00021,7]
[361654372,1747671036468,-151.0,0.00021,2]
[361654373,1747671036477,-998.68447496,0.00021,7]
[361654374,1747671036486,-151.0,0.00021,2]
[361654375,1747671036495,-151.0,0.00021,2]
[361654376,1747671036505,-4623.359254,0.0002101,2]
[361654377,1747671036515,-500.0,0.00021044,2]
[361654378,1747671036524,-3852.41614063,0.00021072,4]
[361654379,1747671036534,-1000.0,0.00021148,2]
[361654380,1747671036543,-1010.0,0.00021199,3]
[361654381,1747671036553,-151.0,0.000212,3]
[361654382,1747671036564,-1004.70443501,0.00021387,2]
[361654383,1747671036587,-2000.0,0.00021387,2]
[361654384,1747671036604,-1000.0,0.00021398,4]
[361654385,1747671036622,-151.0,0.000214,4]
[361654386,1747671036642,-3852.41614063,0.00021417,5]
[361654387,1747671036662,-158.0921024,0.00021507,2]
[361654388,1747671036678,-569.7291921,0.00021507,2]
[361654389,1747671036696,-175.9518997,0.00021507,2]
[361654390,1747671036711,-158.0921024,0.00021507,2]
[361654391,1747671036728,-569.7291921,0.00021507,2]
[361654392,1747671036748,-175.9518997,0.00021507,2]
[361654393,1747671036766,-158.0921024,0.00021507,2]
[361654394,1747671036779,-175.9518997,0.00021507,2]
[361654395,1747671036797,-569.7291921,0.00021507,2]
[361654396,1747671036811,-158.0921024,0.00021507,2]
[361654397,1747671036828,-569.7291921,0.00021507,2]
[361654398,1747671036841,-158.0921024,0.00021507,2]
[361654399,1747671036855,-569.7291921,0.00021507,2]
[361654400,1747671036869,-155.0267423,0.00021507,2]
[361654401,1747671036884,-815.4797921,0.00021507,2]
[361654402,1747671036902,-503.47608848,0.00021592,2]
[361654403,1747671036919,-151.0,0.000216,4]
[361654404,1747671036933,-1200.0,0.00021657,2]
[361654405,1747671036948,-1500.0,0.00021696,2]
[361654406,1747671036962,-2500.0,0.00021699,3]
[361654407,1747671036976,-3852.41614063,0.00021762,5]
[361654408,1747671036990,-151.0,0.000218,4]
[361654409,1747671037005,-5000.0,0.00021805,2]
[361654410,1747671037019,-823.64402148,0.000219,2]
[361654411,1747671037033,-151.0,0.00021918,2]
[361654412,1747671037046,-151.0,0.00021918,2]
[361654413,1747671037060,-151.0,0.00021918,2]
[361654414,1747671037074,-151.0,0.00021918,2]
[361654415,1747671037089,-151.0,0.00021918,2]
[361654416,1747671037103,-151.0,0.00021918,2]
[361654417,1747671037117,-987.6123874,0.00021918,7]
[361654418,1747671037132,-500.0,0.00021918,2]
[361654419,1747671037146,-500.0,0.00021918,2]
[361654420,1747671037163,-500.0,0.00021918,2]
[361654421,1747671037178,-703.92295147,0.00021935,2]
[361654422,1747671037192,-1000.0,0.0002198,2]
[361654423,1747671037207,-151.0,0.0002198,7]
[361654424,1747671037221,-151.0,0.0002198,7]
[361654425,1747671037235,-151.0,0.0002198,7]
[361654426,1747671037249,-151.0,0.0002198,7]
[361654427,1747671037264,-3015.69034028,0.00022,2]
[361654428,1747671037278,-1000.0,0.00022,22]
[361654429,1747671037293,-349.58685094,0.00022,2]
[361654430,1747671037308,-1174.0,0.00022,15]
[361654431,1747671037324,-1323.72,0.00022,7]
[361654432,1747671037339,-170185.21,0.00022,2]
[361654433,1747671037355,-151.0,0.00022,7]
[361654434,1747671037370,-151.0,0.00022,7]
[361654435,1747671037385,-151.0,0.00022,7]
[361654436,1747671037400,-151.0,0.00022,7]
[361654437,1747671037415,-179.254342,0.00022,7]
[361654438,1747671037427,-179.254342,0.00022,7]
[361654439,1747671037437,-151.0,0.00022,7]
[361654440,1747671037595,-151.0,0.00022,7]
[361654441,1747671037605,-152.334436,0.00022,7]
[361654442,1747671037615,-151.0,0.00022,7]
[361654443,1747671037624,-151.0,0.00022,7]
[361654444,1747671037634,-151.0,0.00022,7]
[361654445,1747671037644,-216.453027,0.00022,7]
[361654446,1747671037654,-151.0,0.00022,7]
[361654447,1747671037664,-216.453027,0.00022,7]
[361654448,1747671037674,-151.0,0.00022,7]
[361654449,1747671037683,-151.0,0.00022,7]
[361654450,1747671037693,-151.0,0.00022,7]
[361654451,1747671037702,-3974.38,0.00022,7]
[361654452,1747671037711,-151.0,0.00022,7]
[361654453,1747671037720,-699.641072,0.00022,7]
[361654454,1747671037730,-699.641072,0.00022,7]
[361654455,1747671037739,-151.0,0.00022,7]
[361654456,1747671037749,-151.0,0.00022,7]
[361654457,1747671037758,-151.0,0.00022,7]
[361654459,1747671037768,-151.0,0.00022,7]
[361654460,1747671037778,-151.0,0.00022,7]
[361654462,1747671037788,-151.0,0.00022,7]
[361654464,1747671037798,-233.950832,0.00022,7]
[361654466,1747671037808,-151.0,0.00022,7]
[361654467,1747671037823,-151.0,0.00022,7]
[361654468,1747671037833,-151.0,0.00022,7]
[361654469,1747671037842,-152.727651,0.00022,7]
[361654470,1747671037851,-151.0,0.00022,7]
[361654471,1747671037861,-215.706772,0.00022,7]
[361654474,1747671037869,-170.0,0.00022,2]
[361654475,1747671037875,-151.0,0.00022,2]
[361654477,1747671037883,-151.0,0.00022,2]
[361654479,1747671037891,-151.0,0.00022,7]
[361654481,1747671037898,-151.0,0.00022,7]
[361654482,1747671037907,-151.0,0.00022,7]
[361654483,1747671037917,-151.0,0.00022,7]
[361654484,1747671037926,-152.01396,0.00022,7]
[361654485,1747671037935,-151.0,0.00022,7]
[361654486,1747671037945,-151.0,0.00022,7]
[361654487,1747671037955,-505.0,0.00022,2]
[361654488,1747671037964,-355.0258361,0.00022055,2]
[361654489,1747671037975,-151.0,0.00022092,2]
[361654490,1747671037984,-215.0738,0.00022092,2]
[361654492,1747671037994,-151.0,0.000221,7]
[361654495,1747671038003,-3852.41614063,0.00022107,6]
[361654498,1747671038013,-505.0,0.00022192,7]
[361654501,1747671038023,-2000.0,0.00022244,2]
[361654504,1747671038032,-151.0,0.000223,9]
[361654507,1747671038041,-153.0,0.00022329,2]
[361654510,1747671038051,-153.0,0.00022329,2]
[361654513,1747671038061,-153.0,0.00022329,2]
[361654515,1747671038072,-200.0,0.00022346,7]
[361654517,1747671038081,-200.49544705,0.00022346,7]
[361654519,1747671038090,-160.0,0.0002235,3]
[361654521,1747671038100,-3852.41614063,0.00022452,7]
[361654523,1747671038110,-151.0,0.000225,10]
[361654525,1747671038119,-151.0,0.000225,10]
[361654527,1747671038129,-715.0,0.00022538,3]
[361654529,1747671038139,-485.0,0.00022538,3]
[361654531,1747671038148,-715.0,0.00022538,3]
[361654533,1747671038158,-715.0,0.00022538,3]
[361654535,1747671038167,-170.0,0.00022538,3]
[361654537,1747671038176,-200.0,0.00022585,7]
[361654539,1747671038185,-200.0,0.00022585,7]
[361654541,1747671038195,-151.0,0.000226,8]
[361654543,1747671038204,-445.024538,0.00022603,2]
[361654545,1747671038214,-157.947285,0.00022672,9]
[361654547,1747671038224,-151.0,0.00022693,7]
[361654549,1747671038234,-151.0,0.00022693,7]
[361654551,1747671038244,-175.493073,0.00022693,7]
[361654553,1747671038254,-25804.04267097,0.000227,2]
[361654555,1747671038263,-151.0,0.000227,5]
[361654557,1747671038273,-1152.0,0.00022727,2]
[361654559,1747671038284,-1200.0,0.00022753,2]
[361654561,1747671038293,-151.0,0.0002277,7]
[361654563,1747671038303,-151.0,0.0002277,7]
[361654565,1747671038315,-179.254342,0.0002277,7]
[361654567,1747671038324,-179.254342,0.0002277,7]
[361654568,1747671038334,-151.0,0.0002277,7]
[361654570,1747671038344,-151.0,0.0002277,7]
[361654572,1747671038355,-151.0,0.0002277,7]
[361654574,1747671038364,-151.0,0.0002277,7]
[361654576,1747671038374,-216.453027,0.0002277,7]
[361654578,1747671038384,-267.715268,0.0002277,7]